[Event "5th Ordu Open 2019"]
[Site "Ordu"]
[Date "2019.05.02"]
[Round "6.12"]
[White "Aydin, Aytac"]
[Black "Dikilitas, Beren"]
[Result "1/2-1/2"]
[ECO "B07"]
[WhiteElo "1473"]
[BlackElo "1364"]
[Annotator "NA"]
[PlyCount "100"]
[EventDate "2019.04.29"]
[EventType "swiss"]
[EventCountry "TUR"]
[SourceTitle "playchess.com"]
[Source "ChessBase"]
[SourceQuality "1"]
[TimeControl "5400+30"]

1. d4 {[%emt 0:30:30]} Nf6 {[%emt 0:30:30]} 2. Nf3 {[%emt 0:00:30]} g6 {[%emt 0:00:30]} 3. Nbd2 {[%emt 0:00:00]} Bg7 {[%emt 0:00:30]} 4. e4 {[%emt 0:00:00]} d6 {[%emt 0:00:30]} 5. Bd3 {[%emt 0:00:30]} O-O {[%emt 0:00:30]} 6. O-O {[%emt 0:01:30]} c5 {[%emt 0:02:30]} 7. c3 {[%emt 0:03:30]} Nbd7 {[%emt 0:03:30]} 8. Re1 {[%emt 0:03:30]} cxd4 {[%emt 0:00:30]} 9. cxd4 {[%emt 0:00:00]} e5 {[%emt 0:03:30]} 10. d5 {[%emt 0:01:00]} Nc5 {[%emt 0:05:30]} 11. Bf1 {[%emt 0:00:30]} a5 {[%emt 0:06:30]} 12. b3 {[%emt 0:02:30]} Nxd5 {[%emt 0:02:30]} 13. Nc4 {[%emt 0:07:30]} Nc3 {[%emt 0:00:30]} 14. Qc2 {[%emt 0:00:00]} N3xe4 {[%emt 0:01:30]} 15. Rd1 {[%emt 0:13:00]} Bf5 {[%emt 0:02:30]} 16. Nxd6 {[%emt 0:02:30]} Nxd6 {[%emt 0:00:30]} 17. Qxc5 {[%emt 0:00:00]} Ne4 {[%emt 0:00:30]} 18. Rxd8 {[%emt 0:02:00]} Nxc5 {[%emt 0:00:30]} 19. Rd5 {[%emt 0:11:24]} e4 {[%emt 0:05:30]} 20. Ne5 {[%emt 0:00:34]} Nd3 {[%emt 0:15:25]} 21. Bxd3 {[%emt 0:00:30]} exd3 {[%emt 0:00:00]} 22. Bd2 {[%emt 0:11:51]} a4 {[%emt 0:07:15]} 23. b4 {[%emt 0:01:47]} Rfd8 {[%emt 0:03:56]} 24. Rc5 {[%emt 0:02:50]} Rac8 {[%emt 0:00:38]} 25. Re1 {[%emt 0:03:33]} b6 {[%emt 0:01:05]} 26. Rxc8 {[%emt 0:00:36]} Rxc8 {[%emt 0:00:04]} 27. Nf3 {[%emt 0:00:47]} Bc3 {[%emt 0:02:01]} 28. Rc1 {[%emt 0:00:34]} Bxd2 {[%emt 0:00:08]} 29. Rxc8+ {[%emt 0:00:30]} Bxc8 {[%emt 0:00:30]} 30. Nxd2 {[%emt 0:00:00]} a3 {[%emt 0:00:00]} 31. Nb1 {[%emt 0:00:47]} Be6 {[%emt 0:00:23]} 32. Kf1 {[%emt 0:00:30]} Bxa2 {[%emt 0:00:00]} 33. Nxa3 {[%emt 0:00:00]} Bd5 {[%emt 0:02:01]} 34. f3 {[%emt 0:00:43]} g5 {[%emt 0:00:58]} 35. h3 {[%emt 0:00:50]} h5 {[%emt 0:00:30]} 36. Ke1 {[%emt 0:00:00]} g4 {[%emt 0:00:00]} 37. hxg4 {[%emt 0:00:24]} hxg4 {[%emt 0:00:18]} 38. fxg4 {[%emt 0:00:30]} Bxg2 {[%emt 0:00:30]} 39. Kd2 {[%emt 0:00:30]} Be4 {[%emt 0:00:42]} 40. Nc4 {[%emt 0:00:00]} f6 {[%emt 0:01:42]} 41. Nxb6 {[%emt 0:00:00]} Bf3 {[%emt 0:00:09]} 42. Kxd3 {[%emt 0:00:29]} Bxg4 {[%emt 0:00:30]} 43. Nd5 {[%emt 0:00:00]} Kf7 {[%emt 0:00:00]} 44. b5 {[%emt 0:01:00]} Bc8 {[%emt 0:00:27]} 45. Nxf6 {[%emt 0:00:00]} Kxf6 {[%emt 0:00:00]} 46. b6 {[%emt 0:00:25]} Bb7 {[%emt 0:00:17]} 47. Kc3 {[%emt 0:00:30]} Ke6 {[%emt 0:00:00]} 48. Kb2 {[%emt 0:00:00]} Kd6 {[%emt 0:00:00]} 49. Kc3 {[%emt 0:00:06]} Kc6 {[%emt 0:00:07]} 50. Kd4 {[%emt 0:00:00]} Kxb6 {[%emt 0:00:01]} 1/2-1/2

[Event "5th Ordu Open 2019"]
[Site "Ordu"]
[Date "2019.05.02"]
[Round "6.13"]
[White "Caymaz, Umit Oguz"]
[Black "Onmus, Arif"]
[Result "1-0"]
[ECO "A34"]
[WhiteElo "1442"]
[BlackElo "1527"]
[Annotator "NA"]
[PlyCount "41"]
[EventDate "2019.04.29"]
[EventType "swiss"]
[EventCountry "TUR"]
[SourceTitle "playchess.com"]
[Source "ChessBase"]
[SourceQuality "1"]
[TimeControl "5400+30"]

1. Nf3 {[%emt 0:30:30]} Nf6 {[%emt 0:30:30]} 2. c4 {[%emt 0:00:30]} c5 {[%emt 0:00:30]} 3. Nc3 {[%emt 0:00:30]} Nc6 {[%emt 0:00:30]} 4. Nd5 {[%emt 0:03:30]} e6 {[%emt 0:01:30]} 5. Nxf6+ {[%emt 0:02:30]} Qxf6 {[%emt 0:00:30]} 6. e3 {[%emt 0:02:30]} Be7 {[%emt 0:00:30]} 7. a3 {[%emt 0:01:30]} O-O {[%emt 0:00:30]} 8. h4 {[%emt 0:02:30]} d5 {[%emt 0:00:30]} 9. Qc2 {[%emt 0:01:30]} d4 {[%emt 0:03:30]} 10. Ng5 {[%emt 0:06:30]} Qh6 {[%emt 0:00:30]} 11. f4 {[%emt 0:02:30]} e5 {[%emt 0:02:30]} 12. g3 {[%emt 0:05:30]} f5 {[%emt 0:01:30]} 13. d3 {[%emt 0:02:30]} Re8 {[%emt 0:01:30]} 14. Bg2 {[%emt 0:01:30]} dxe3 {[%emt 0:00:30]} 15. Bd5+ {[%emt 0:00:30]} Kf8 {[%emt 0:01:30]} 16. Bxe3 {[%emt 0:01:30]} Bxg5 {[%emt 0:01:30]} 17. hxg5 {[%emt 0:00:30]} Qd6 {[%emt 0:00:30]} 18. O-O-O {[%emt 0:00:30]} g6 {[%emt 0:03:30]} 19. Rxh7 {[%emt 0:03:30]} Be6 {[%emt 0:00:30]} 20. Qh2 {[%emt 0:01:30]} Bxd5 {[%emt 0:00:30]} 21. Qh6+ {[%emt 0:00:00]} 1-0

[Event "5th Ordu Open 2019"]
[Site "Ordu"]
[Date "2019.05.02"]
[Round "6.14"]
[White "Kvikvinia, Teimuraz"]
[Black "Civelek, Mehmet Eren"]
[Result "1-0"]
[ECO "B60"]
[WhiteElo "1592"]
[BlackElo "1260"]
[Annotator "NA"]
[PlyCount "117"]
[EventDate "2019.04.29"]
[EventType "swiss"]
[EventCountry "TUR"]
[SourceTitle "playchess.com"]
[Source "ChessBase"]
[SourceQuality "1"]
[TimeControl "5400+30"]

1. e4 {[%emt 0:30:30]} c5 {[%emt 0:30:30]} 2. Nf3 {[%emt 0:00:30]} Nc6 {[%emt 0:00:30]} 3. d4 {[%emt 0:00:00]} cxd4 {[%emt 0:00:00]} 4. Nxd4 {[%emt 0:00:00]} Nf6 {[%emt 0:00:00]} 5. Nc3 {[%emt 0:00:30]} d6 {[%emt 0:00:30]} 6. Bg5 {[%emt 0:00:00]} Qb6 {[%emt 0:00:00]} 7. Nb3 {[%emt 0:00:00]} Qd8 {[%emt 0:00:00]} 8. Be2 {[%emt 0:00:30]} g6 {[%emt 0:01:30]} 9. Bxf6 {[%emt 0:00:30]} exf6 {[%emt 0:00:30]} 10. O-O {[%emt 0:00:30]} Be7 {[%emt 0:00:00]} 11. Qd2 {[%emt 0:01:30]} O-O {[%emt 0:00:00]} 12. Rad1 {[%emt 0:00:30]} a6 {[%emt 0:00:00]} 13. Nd5 {[%emt 0:00:30]} Kg7 {[%emt 0:00:00]} 14. f3 {[%emt 0:00:00]} f5 {[%emt 0:01:30]} 15. Nxe7 {[%emt 0:00:00]} Qxe7 {[%emt 0:00:00]} 16. Qxd6 {[%emt 0:01:30]} Qxd6 {[%emt 0:00:00]} 17. Rxd6 {[%emt 0:00:30]} Re8 {[%emt 0:00:00]} 18. Bd3 {[%emt 0:01:30]} fxe4 {[%emt 0:01:00]} 19. Bxe4 {[%emt 0:00:30]} Nb4 {[%emt 0:00:30]} 20. a3 {[%emt 0:00:00]} f5 {[%emt 0:01:30]} 21. Bxb7 {[%emt 0:00:00]} Bxb7 {[%emt 0:00:30]} 22. axb4 {[%emt 0:00:30]} Kh8 {[%emt 0:00:00]} 23. Nc5 {[%emt 0:00:30]} Bc8 {[%emt 0:00:00]} 24. Rfd1 {[%emt 0:00:00]} Re2 {[%emt 0:00:30]} 25. Rd8+ {[%emt 0:00:00]} Kg7 {[%emt 0:00:30]} 26. R1d2 {[%emt 0:00:30]} Re1+ {[%emt 0:00:30]} 27. Kf2 {[%emt 0:00:30]} Re5 {[%emt 0:01:30]} 28. f4 {[%emt 0:00:30]} Re7 {[%emt 0:00:30]} 29. Re2 {[%emt 0:00:30]} Rf7 {[%emt 0:00:00]} 30. Ree8 {[%emt 0:00:00]} Rc7 {[%emt 0:01:00]} 31. Ne6+ {[%emt 0:00:00]} Bxe6 {[%emt 0:00:30]} 32. Rxa8 {[%emt 0:00:30]} Rxc2+ {[%emt 0:00:30]} 33. Kg3 {[%emt 0:00:00]} Bd5 {[%emt 0:00:00]} 34. Ra7+ {[%emt 0:00:00]} Kh6 {[%emt 0:00:00]} 35. Ree7 {[%emt 0:01:30]} Bg8 {[%emt 0:00:30]} 36. Ra8 {[%emt 0:00:30]} Bd5 {[%emt 0:00:30]} 37. Rh8 {[%emt 0:01:30]} g5 {[%emt 0:00:30]} 38. Rhxh7+ {[%emt 0:00:00]} Kg6 {[%emt 0:00:30]} 39. Rhg7+ {[%emt 0:00:00]} Kh6 {[%emt 0:00:30]} 40. fxg5+ {[%emt 0:00:30]} Kh5 {[%emt 0:00:30]} 41. h4 {[%emt 0:00:30]} f4+ {[%emt 0:00:30]} 42. Kxf4 {[%emt 0:00:30]} Rc4+ {[%emt 0:00:30]} 43. Kf5 {[%emt 0:00:30]} Kxh4 {[%emt 0:00:00]} 44. g6 {[%emt 0:01:30]} Bxg2 {[%emt 0:00:00]} 45. Rh7+ {[%emt 0:00:00]} Kg3 {[%emt 0:00:30]} 46. g7 {[%emt 0:02:00]} Rf4+ {[%emt 0:00:30]} 47. Ke5 {[%emt 0:00:00]} Re4+ {[%emt 0:00:00]} 48. Kd6 {[%emt 0:00:00]} Rd4+ {[%emt 0:00:00]} 49. Kc5 {[%emt 0:00:30]} Rd5+ {[%emt 0:00:30]} 50. Kc4 {[%emt 0:00:30]} Rg5 {[%emt 0:00:00]} 51. g8=Q {[%emt 0:00:30]} Bf1+ {[%emt 0:00:00]} 52. Kd4 {[%emt 0:00:00]} Rxg8 {[%emt 0:00:30]} 53. Rhg7+ {[%emt 0:00:00]} Rxg7 {[%emt 0:00:30]} 54. Rxg7+ {[%emt 0:00:30]} Kh4 {[%emt 0:00:30]} 55. Kc5 {[%emt 0:00:00]} Kh5 {[%emt 0:00:00]} 56. Kb6 {[%emt 0:00:00]} Kh6 {[%emt 0:00:00]} 57. Ra7 {[%emt 0:00:00]} Kg6 {[%emt 0:00:30]} 58. Rxa6 {[%emt 0:00:00]} Bxa6 {[%emt 0:00:30]} 59. Kxa6 {[%emt 0:00:00]} 1-0

[Event "5th Ordu Open 2019"]
[Site "Ordu"]
[Date "2019.05.02"]
[Round "6.15"]
[White "Iakobadze, Ucha"]
[Black "Lortkipanidze, Goga"]
[Result "1/2-1/2"]
[ECO "D40"]
[WhiteElo "1387"]
[BlackElo "1324"]
[Annotator "NA"]
[PlyCount "74"]
[EventDate "2019.04.29"]
[EventType "swiss"]
[EventCountry "TUR"]
[SourceTitle "playchess.com"]
[Source "ChessBase"]
[SourceQuality "1"]
[TimeControl "5400+30"]

1. d4 {[%emt 0:30:30]} Nf6 {[%emt 0:30:30]} 2. e3 {[%emt 0:00:30]} d5 {[%emt 0:00:30]} 3. c4 {[%emt 0:00:30]} e6 {[%emt 0:00:30]} 4. Nc3 {[%emt 0:00:30]} c5 {[%emt 0:01:30]} 5. Nf3 {[%emt 0:00:30]} Nc6 {[%emt 0:00:00]} 6. g3 {[%emt 0:01:30]} dxc4 {[%emt 0:01:00]} 7. Bxc4 {[%emt 0:00:30]} Nd5 {[%emt 0:00:30]} 8. Nxd5 {[%emt 0:00:30]} exd5 {[%emt 0:00:30]} 9. Bb5 {[%emt 0:00:30]} Bd7 {[%emt 0:00:30]} 10. Bxc6 {[%emt 0:00:30]} Bxc6 {[%emt 0:00:30]} 11. O-O {[%emt 0:00:00]} c4 {[%emt 0:00:30]} 12. Ne5 {[%emt 0:00:00]} Qc7 {[%emt 0:00:30]} 13. Qf3 {[%emt 0:00:30]} Bd6 {[%emt 0:00:30]} 14. Nxc6 {[%emt 0:00:30]} Qxc6 {[%emt 0:00:00]} 15. b3 {[%emt 0:00:30]} cxb3 {[%emt 0:01:00]} 16. axb3 {[%emt 0:00:00]} O-O {[%emt 0:00:30]} 17. Ba3 {[%emt 0:00:00]} Bxa3 {[%emt 0:00:00]} 18. Rxa3 {[%emt 0:00:30]} Qd6 {[%emt 0:00:00]} 19. Rfa1 {[%emt 0:00:00]} a6 {[%emt 0:00:30]} 20. Ra5 {[%emt 0:00:00]} Rfd8 {[%emt 0:01:30]} 21. b4 {[%emt 0:00:30]} b5 {[%emt 0:00:30]} 22. Qf4 {[%emt 0:00:30]} Qxf4 {[%emt 0:00:30]} 23. exf4 {[%emt 0:00:30]} Rd6 {[%emt 0:00:00]} 24. Kg2 {[%emt 0:00:30]} Rb6 {[%emt 0:01:00]} 25. Rc1 {[%emt 0:00:00]} f5 {[%emt 0:00:30]} 26. Rc5 {[%emt 0:00:00]} Rd8 {[%emt 0:00:30]} 27. f3 {[%emt 0:00:30]} Re6 {[%emt 0:00:30]} 28. g4 {[%emt 0:00:30]} g6 {[%emt 0:00:00]} 29. h3 {[%emt 0:00:30]} h5 {[%emt 0:00:00]} 30. g5 {[%emt 0:01:30]} Rdd6 {[%emt 0:01:30]} 31. h4 {[%emt 0:00:00]} Kf7 {[%emt 0:00:30]} 32. Rc7+ {[%emt 0:01:00]} Re7 {[%emt 0:01:30]} 33. Rxe7+ {[%emt 0:00:30]} Kxe7 {[%emt 0:00:30]} 34. Ra1 {[%emt 0:00:00]} Rc6 {[%emt 0:00:00]} 35. Kg3 {[%emt 0:00:00]} Kd7 {[%emt 0:00:00]} 36. Re1 {[%emt 0:00:30]} Re6 {[%emt 0:00:30]} 37. Re5 {[%emt 0:00:30]} Ke8 {[%emt 0:00:30]} 1/2-1/2

[Event "5th Ordu Open 2019"]
[Site "Ordu"]
[Date "2019.05.02"]
[Round "6.16"]
[White "Makhatadze, Khatia"]
[Black "Say, Efe"]
[Result "1-0"]
[ECO "B53"]
[WhiteElo "1293"]
[BlackElo "1227"]
[Annotator "NA"]
[PlyCount "129"]
[EventDate "2019.04.29"]
[EventType "swiss"]
[EventCountry "TUR"]
[SourceTitle "playchess.com"]
[Source "ChessBase"]
[SourceQuality "1"]
[TimeControl "5400+30"]

1. e4 {[%emt 0:30:30]} c5 {[%emt 0:30:30]} 2. Nf3 {[%emt 0:00:30]} d6 {[%emt 0:00:30]} 3. d4 {[%emt 0:00:30]} cxd4 {[%emt 0:00:30]} 4. Qxd4 {[%emt 0:00:00]} a6 {[%emt 0:00:00]} 5. Nc3 {[%emt 0:00:00]} Nc6 {[%emt 0:00:00]} 6. Qd3 {[%emt 0:02:30]} Nf6 {[%emt 0:00:30]} 7. Bg5 {[%emt 0:00:30]} e6 {[%emt 0:01:30]} 8. O-O-O {[%emt 0:01:30]} Be7 {[%emt 0:00:30]} 9. Bxf6 {[%emt 0:03:30]} Bxf6 {[%emt 0:00:30]} 10. Qxd6 {[%emt 0:00:30]} Qb6 {[%emt 0:11:30]} 11. e5 {[%emt 0:04:30]} Be7 {[%emt 0:03:30]} 12. Qd2 {[%emt 0:01:30]} O-O {[%emt 0:03:30]} 13. Bd3 {[%emt 0:02:30]} Rd8 {[%emt 0:08:30]} 14. h4 {[%emt 0:06:30]} Qa5 {[%emt 0:03:30]} 15. Qf4 {[%emt 0:07:30]} b5 {[%emt 0:04:30]} 16. Qe4 {[%emt 0:02:30]} g6 {[%emt 0:02:30]} 17. Qxc6 {[%emt 0:01:30]} Bd7 {[%emt 0:00:30]} 18. Qe4 {[%emt 0:00:30]} b4 {[%emt 0:01:30]} 19. Ne2 {[%emt 0:06:30]} Qxa2 {[%emt 0:01:30]} 20. Qc4 {[%emt 0:02:30]} Qa1+ {[%emt 0:00:30]} 21. Kd2 {[%emt 0:00:30]} Qa5 {[%emt 0:02:30]} 22. Ra1 {[%emt 0:00:30]} Qb6 {[%emt 0:00:00]} 23. Qd4 {[%emt 0:02:30]} Bc5 {[%emt 0:01:00]} 24. Qf4 {[%emt 0:00:30]} Bb5 {[%emt 0:06:16]} 25. Ng5 {[%emt 0:01:30]} Ra7 {[%emt 0:01:13]} 26. h5 {[%emt 0:01:30]} Bxd3 {[%emt 0:01:36]} 27. cxd3 {[%emt 0:00:00]} Qb5 {[%emt 0:01:35]} 28. hxg6 {[%emt 0:03:19]} Qxd3+ {[%emt 0:00:08]} 29. Ke1 {[%emt 0:00:34]} fxg6 {[%emt 0:00:16]} 30. Nxe6 {[%emt 0:00:57]} Bxf2+ {[%emt 0:01:18]} 31. Qxf2 {[%emt 0:03:04]} Qd2+ {[%emt 0:00:53]} 32. Kf1 {[%emt 0:00:30]} Qd1+ {[%emt 0:00:00]} 33. Rxd1 {[%emt 0:01:12]} Rxd1+ {[%emt 0:00:13]} 34. Qe1 {[%emt 0:00:30]} Rf7+ {[%emt 0:00:00]} 35. N6f4 {[%emt 0:00:00]} Rxe1+ {[%emt 0:00:40]} 36. Kxe1 {[%emt 0:00:00]} Re7 {[%emt 0:00:35]} 37. e6 {[%emt 0:00:39]} g5 {[%emt 0:00:30]} 38. Nh3 {[%emt 0:00:00]} Rxe6 {[%emt 0:00:17]} 39. Nxg5 {[%emt 0:00:04]} Rg6 {[%emt 0:00:07]} 40. Nxh7 {[%emt 0:01:56]} Rxg2 {[%emt 0:00:40]} 41. Nf6+ {[%emt 0:00:30]} Kf7 {[%emt 0:00:30]} 42. Nd5 {[%emt 0:00:30]} a5 {[%emt 0:00:30]} 43. Rh6 {[%emt 0:00:13]} Rg5 {[%emt 0:00:00]} 44. Nef4 {[%emt 0:00:42]} Re5+ {[%emt 0:00:56]} 45. Kd2 {[%emt 0:00:19]} Rf5 {[%emt 0:01:46]} 46. Ra6 {[%emt 0:01:02]} Rg5 {[%emt 0:00:12]} 47. Ra7+ {[%emt 0:01:00]} Ke8 {[%emt 0:00:30]} 48. Nf6+ {[%emt 0:00:00]} Kd8 {[%emt 0:02:30]} 49. Ne6+ {[%emt 0:00:23]} Kc8 {[%emt 0:00:00]} 50. Nxg5 {[%emt 0:00:30]} Kb8 {[%emt 0:00:00]} 51. Rxa5 {[%emt 0:00:30]} Kc7 {[%emt 0:00:03]} 52. Rb5 {[%emt 0:00:37]} Kc6 {[%emt 0:00:30]} 53. Rxb4 {[%emt 0:00:00]} Kc5 {[%emt 0:00:06]} 54. Kc3 {[%emt 0:00:05]} Kd6 {[%emt 0:00:30]} 55. Rb5 {[%emt 0:00:00]} Kc6 {[%emt 0:00:00]} 56. Kc4 {[%emt 0:00:17]} Kd6 {[%emt 0:00:13]} 57. Rd5+ {[%emt 0:00:27]} Kc6 {[%emt 0:00:30]} 58. b4 {[%emt 0:00:30]} Kb6 {[%emt 0:00:00]} 59. b5 {[%emt 0:00:00]} Kc7 {[%emt 0:00:00]} 60. Ne6+ {[%emt 0:00:00]} Kb6 {[%emt 0:00:31]} 61. Rd6+ {[%emt 0:00:07]} Kb7 {[%emt 0:00:32]} 62. Kc5 {[%emt 0:00:20]} Ka7 {[%emt 0:00:23]} 63. b6+ {[%emt 0:00:30]} Ka6 {[%emt 0:00:00]} 64. Rd7 {[%emt 0:00:24]} Ka5 {[%emt 0:00:18]} 65. Ra7# {[%emt 0:00:00]} 1-0

[Event "5th Ordu Open 2019"]
[Site "Ordu"]
[Date "2019.05.02"]
[Round "6.17"]
[White "Sen, Kamil"]
[Black "Yuceturk, Hakan"]
[Result "1-0"]
[ECO "A42"]
[WhiteElo "1205"]
[BlackElo "1037"]
[Annotator "NA"]
[PlyCount "73"]
[EventDate "2019.04.29"]
[EventType "swiss"]
[EventCountry "TUR"]
[SourceTitle "playchess.com"]
[Source "ChessBase"]
[SourceQuality "1"]
[TimeControl "5400+30"]

1. c4 {[%emt 0:30:30]} d6 {[%emt 0:30:30]} 2. Nc3 {[%emt 0:00:00]} g6 {[%emt 0:01:30]} 3. e4 {[%emt 0:00:00]} Bg7 {[%emt 0:00:30]} 4. d4 {[%emt 0:00:30]} Nc6 {[%emt 0:00:30]} 5. Be3 {[%emt 0:00:30]} e5 {[%emt 0:03:30]} 6. d5 {[%emt 0:01:30]} Nd4 {[%emt 0:00:30]} 7. Be2 {[%emt 0:00:30]} Ne7 {[%emt 0:00:30]} 8. g4 {[%emt 0:01:30]} c6 {[%emt 0:01:30]} 9. h3 {[%emt 0:01:30]} O-O {[%emt 0:02:30]} 10. b4 {[%emt 0:01:30]} Qb6 {[%emt 0:03:30]} 11. Rb1 {[%emt 0:00:30]} Qc7 {[%emt 0:01:30]} 12. Bd3 {[%emt 0:02:30]} cxd5 {[%emt 0:00:30]} 13. exd5 {[%emt 0:01:30]} f5 {[%emt 0:00:30]} 14. Bxd4 {[%emt 0:00:30]} exd4 {[%emt 0:00:30]} 15. Nb5 {[%emt 0:00:30]} Qd8 {[%emt 0:02:30]} 16. g5 Re8 {[%emt 0:00:30]} 17. Kf1 {[%emt 0:02:00]} Bd7 {[%emt 0:01:30]} 18. Nxd6 {[%emt 0:03:30]} Rf8 {[%emt 0:02:30]} 19. Nxb7 {[%emt 0:00:30]} Qc7 {[%emt 0:00:30]} 20. Nc5 {[%emt 0:00:30]} a5 {[%emt 0:00:30]} 21. Nxd7 {[%emt 0:00:30]} Qxd7 {[%emt 0:00:30]} 22. b5 {[%emt 0:00:00]} Nc8 {[%emt 0:01:30]} 23. Qf3 {[%emt 0:00:00]} Nd6 {[%emt 0:00:30]} 24. Ne2 {[%emt 0:01:30]} Qe7 {[%emt 0:00:30]} 25. h4 {[%emt 0:01:30]} Ne4 {[%emt 0:00:30]} 26. Rd1 {[%emt 0:00:30]} Rae8 {[%emt 0:00:30]} 27. Nf4 {[%emt 0:00:30]} Qb4 {[%emt 0:04:30]} 28. Kg2 {[%emt 0:00:30]} Nd2 {[%emt 0:02:30]} 29. Rxd2 {[%emt 0:03:30]} Qxd2 {[%emt 0:00:30]} 30. Ne6 {[%emt 0:00:30]} Rf7 {[%emt 0:01:30]} 31. Bb1 {[%emt 0:02:30]} Bh8 {[%emt 0:01:30]} 32. c5 {[%emt 0:01:30]} Qb4 {[%emt 0:04:30]} 33. b6 {[%emt 0:01:30]} Rd7 {[%emt 0:01:30]} 34. c6 {[%emt 0:01:30]} Rd6 {[%emt 0:01:30]} 35. b7 {[%emt 0:01:30]} Qc4 {[%emt 0:00:30]} 36. c7 {[%emt 0:00:30]} Rdxe6 {[%emt 0:00:30]} 37. b8=Q {[%emt 0:00:30]} 1-0

[Event "5th Ordu Open 2019"]
[Site "Ordu"]
[Date "2019.05.02"]
[Round "6.18"]
[White "Sahin, Taha"]
[Black "Ozcoban, Samet"]
[Result "1-0"]
[ECO "C42"]
[WhiteElo "1557"]
[BlackElo "1036"]
[Annotator "NA"]
[PlyCount "99"]
[EventDate "2019.04.29"]
[EventType "swiss"]
[EventCountry "TUR"]
[SourceTitle "playchess.com"]
[Source "ChessBase"]
[SourceQuality "1"]
[TimeControl "5400+30"]

1. e4 {[%emt 0:30:30]} Nf6 {[%emt 0:30:30]} 2. Nc3 {[%emt 0:00:30]} d6 {[%emt 0:00:30]} 3. Nf3 {[%emt 0:00:00]} e5 {[%emt 0:00:30]} 4. Bc4 {[%emt 0:00:00]} Bg4 {[%emt 0:00:30]} 5. h3 {[%emt 0:01:30]} Bh5 {[%emt 0:02:30]} 6. d3 {[%emt 0:00:30]} h6 {[%emt 0:00:30]} 7. Be3 {[%emt 0:00:30]} c6 {[%emt 0:00:30]} 8. Bb3 {[%emt 0:00:30]} Nbd7 {[%emt 0:02:30]} 9. Qe2 {[%emt 0:02:30]} Nb6 {[%emt 0:00:30]} 10. g4 {[%emt 0:00:30]} Bg6 {[%emt 0:00:30]} 11. g5 {[%emt 0:00:30]} hxg5 {[%emt 0:01:30]} 12. Bxg5 {[%emt 0:00:30]} Be7 {[%emt 0:00:30]} 13. O-O-O {[%emt 0:00:30]} Qd7 {[%emt 0:01:30]} 14. h4 {[%emt 0:01:30]} Bh5 {[%emt 0:02:30]} 15. Rdg1 {[%emt 0:00:30]} O-O-O {[%emt 0:02:30]} 16. Be3 {[%emt 0:00:30]} Qc7 {[%emt 0:01:30]} 17. Rxg7 {[%emt 0:01:30]} Ng4 {[%emt 0:00:30]} 18. Bxf7 {[%emt 0:01:30]} Bxf7 {[%emt 0:01:30]} 19. Rxf7 {[%emt 0:00:30]} Nxe3 {[%emt 0:00:00]} 20. fxe3 {[%emt 0:00:30]} Rdg8 {[%emt 0:05:00]} 21. d4 {[%emt 0:01:30]} a6 {[%emt 0:04:30]} 22. Rh3 {[%emt 0:01:30]} Qd7 {[%emt 0:00:30]} 23. Qh2 {[%emt 0:00:00]} Qe6 {[%emt 0:02:30]} 24. Rf5 {[%emt 0:00:00]} Nc4 {[%emt 0:00:30]} 25. d5 {[%emt 0:03:30]} cxd5 {[%emt 0:00:00]} 26. Nxd5 {[%emt 0:00:30]} Rg4 {[%emt 0:00:00]} 27. Nxe7+ {[%emt 0:02:30]} Qxe7 {[%emt 0:00:30]} 28. Ng5 {[%emt 0:00:30]} Qg7 {[%emt 0:12:30]} 29. Qe2 {[%emt 0:00:30]} Rg1+ {[%emt 0:01:30]} 30. Rf1 {[%emt 0:00:30]} Rxf1+ {[%emt 0:00:30]} 31. Qxf1 {[%emt 0:00:00]} b5 {[%emt 0:04:30]} 32. b3 {[%emt 0:01:00]} Rxh4 {[%emt 0:02:30]} 33. Qf5+ {[%emt 0:01:30]} Qd7 {[%emt 0:01:42]} 34. Qxd7+ {[%emt 0:01:30]} Kxd7 {[%emt 0:00:05]} 35. Rxh4 {[%emt 0:00:00]} Nxe3 {[%emt 0:00:05]} 36. Kd2 {[%emt 0:01:00]} Ng2 {[%emt 0:00:51]} 37. Rh2 {[%emt 0:00:30]} Nf4 {[%emt 0:00:00]} 38. a4 {[%emt 0:00:30]} bxa4 {[%emt 0:01:34]} 39. bxa4 {[%emt 0:00:00]} Kc6 {[%emt 0:00:30]} 40. Kc3 {[%emt 0:00:00]} Kc5 {[%emt 0:00:00]} 41. Rd2 {[%emt 0:00:30]} d5 {[%emt 0:00:00]} 42. exd5 {[%emt 0:00:30]} Nxd5+ {[%emt 0:00:17]} 43. Kb3 {[%emt 0:00:30]} a5 {[%emt 0:01:39]} 44. Ne4+ {[%emt 0:00:30]} Kc6 {[%emt 0:00:01]} 45. c4 {[%emt 0:00:00]} Nf4 {[%emt 0:02:20]} 46. Rd6+ {[%emt 0:00:00]} Kb7 {[%emt 0:02:47]} 47. Rh6 {[%emt 0:00:30]} Ne2 {[%emt 0:00:03]} 48. c5 {[%emt 0:00:00]} Nd4+ {[%emt 0:01:03]} 49. Kc4 {[%emt 0:00:00]} Nc6 {[%emt 0:00:01]} 50. Kb5 {[%emt 0:01:30]} 1-0

[Event "5th Ordu Open 2019"]
[Site "Ordu"]
[Date "2019.05.03"]
[Round "7.2"]
[White "Haznedaroglu, Kivanc"]
[Black "Isik, Alparslan"]
[Result "0-1"]
[ECO "B07"]
[WhiteElo "2466"]
[BlackElo "2233"]
[Annotator "ChessBase"]
[PlyCount "70"]
[EventDate "2019.04.29"]
[EventType "swiss"]
[EventCountry "TUR"]
[SourceTitle "playchess.com"]
[Source "ChessBase"]
[SourceQuality "1"]
[TimeControl "5400+30"]

1. e4 {[%emt 0:00:30]} d6 {[%emt 0:02:30]} 2. d4 {[%emt 0:00:30]} Nf6 {[%emt 0:00:30]} 3. Nc3 {[%emt 0:00:30]} e5 {[%emt 0:00:30]} 4. Nge2 {[%emt 0:00:00]} c6 {[%emt 0:02:30]} 5. g3 {[%emt 0:01:00]} Be7 {[%emt 0:02:30]} 6. Bg2 {[%emt 0:01:30]} b5 {[%emt 0:01:30]} 7. a3 {[%emt 0:00:30]} O-O {[%emt 0:01:30]} 8. O-O {[%emt 0:00:00]} Nbd7 {[%emt 0:01:30]} 9. h3 {[%emt 0:06:00]} Bb7 {[%emt 0:04:30]} 10. g4 {[%emt 0:02:30]} a5 {[%emt 0:03:30]} 11. Ng3 {[%emt 0:07:30]} b4 {[%emt 0:07:30]} 12. Nce2 {[%emt 0:00:30]} d5 {[%emt 0:05:30]} 13. axb4 {[%emt 0:10:30]} axb4 {[%emt 0:03:30]} 14. Rxa8 {[%emt 0:00:30]} Bxa8 {[%emt 0:00:30]} 15. exd5 {[%emt 0:09:30]} Nxd5 {[%emt 0:09:30]} 16. dxe5 {[%emt 0:03:30]} Nxe5 {[%emt 0:00:30]} 17. Nd4 {[%emt 0:00:30]} Ng6 {[%emt 0:04:30]} 18. Ndf5 {[%emt 0:05:30]} Ngf4 {[%emt 0:04:30]} 19. Nxe7+ {[%emt 0:00:30]} Qxe7 {[%emt 0:00:30]} 20. Re1 {[%emt 0:04:30]} Qc7 {[%emt 0:06:30]} 21. Bf1 {[%emt 0:02:30]} c5 {[%emt 0:00:30]} 22. Qf3 {[%emt 0:04:30]} Ne6 {[%emt 0:02:30]} 23. Nf5 {[%emt 0:02:30]} Ndf4 {[%emt 0:09:30]} 24. Bxf4 {[%emt 0:07:30]} Nxf4 {[%emt 0:01:30]} 25. Re7 {[%emt 0:00:30]} Qb8 {[%emt 0:03:30]} 26. Qe3 {[%emt 0:04:30]} Ng6 {[%emt 0:03:27]} 27. Rd7 {[%emt 0:03:30]} Ne5 {[%emt 0:03:44]} 28. Bb5 {[%emt 0:07:40]} Nf3+ {[%emt 0:01:52]} 29. Kg2 {[%emt 0:03:04]} Nh4+ {[%emt 0:01:39]} 30. Kg1 {[%emt 0:00:40]} Nxf5 {[%emt 0:00:50]} 31. Qxc5 {[%emt 0:01:27]} Nh4 {[%emt 0:00:40]} 32. Bc4 {[%emt 0:00:56]} Nf3+ {[%emt 0:01:22]} 33. Kf1 {[%emt 0:00:30]} Ne5 {[%emt 0:02:03]} 34. Rc7 {[%emt 0:00:37]} Nxc4 {[%emt 0:00:30]} 35. Qxc4 {[%emt 0:00:00]} Qd8 {[%emt 0:00:00]} 0-1